Cogmind - Beta 12 @@@ ROGUE MODE // 2023.10.20 @ 18:33:08 Player: Figgis Result: Self-destructed Performance ------------- Evolutions (0) 0 Regions Visited (4) 800 Robots Destroyed (19) 95 Value Destroyed (535) 535 Prototype IDs (25) 500 Alien Tech Used (0) 0 Bonus (378) 378 TOTAL SCORE: 2308 Bonus ------- Follower Combat Kills 110 Aligned with FarCom 300 Friendly Fire -32 Cogmind --------- Core Integrity 47/250 Matter 300/300 Energy 90/100 System Corruption 0% Temperature Cool (20) Movement Walking (190) Ox1 Location -9/Mines Parts ------- > --- POWER (1) -------- (None) > --- PROPULSION (2) --- Improved Aluminum Leg > --- UTILITY (2) ------ Improved Heat Sink Large Storage Unit > --- WEAPON (2) ------- Particle Gun > --- INVENTORY (15) --- Improved Aluminum Leg Improved Aluminum Leg Improved Aluminum Leg Improved Aluminum Leg Improved Aluminum Leg Improved Aluminum Leg Makeshift Leg Lightpack 2.0 Superbattery (1500) Large Matter Pod (150) Large Matter Pod (150) PSU Rigger Peak State ------------ > --- POWER ------------ Ion Engine > --- PROPULSION ------- Improved Aluminum Leg Improved Aluminum Leg > --- UTILITY ---------- Improved Heat Sink Large Storage Unit > --- WEAPON ----------- Particle Gun Mining Laser > --- INVENTORY -------- Improved Aluminum Leg Improved Aluminum Leg Improved Aluminum Leg Improved Aluminum Leg Improved Aluminum Leg Improved Aluminum Leg Makeshift Leg Lightpack 2.0 Superbattery PSU Rigger Particle Gun [Rating: 18] Favorites ----------- Power Ion Engine Engine Ion Engine Propulsion Improved Aluminum Leg Treads Improved Treads Leg Improved Aluminum Leg Utility Small Storage Unit Device Improved Heat Sink Storage Small Storage Unit Protection Utility Shielding Weapon Particle Gun Energy Gun Particle Gun Launcher Grenade Launcher Special Weapon Mining Laser Build | -11 -10 -10 -10 -9 ------- Run | Jun Mat Min Exi Min Slots Evolved . | . . . . . Power . | . . . . . Propulsion . | . . . . . Utility . | . . . . . Weapon . | . . . . . Parts Attached 27 | 4 17 4 1 1 Power 5 | 2 2 1 . . Engine 5 | 2 2 1 . . Core . | . . . . . Reactor . | . . . . . Propulsion 6 | 2 4 . . . Treads 4 | 2 2 . . . Leg 2 | . 2 . . . Wheel . | . . . . . Hover . | . . . . . Flight . | . . . . . Utility 4 | . 2 1 1 . Device 1 | . . 1 . . Storage 2 | . 1 . 1 . Processor . | . . . . . Hackware . | . . . . . Protection 1 | . 1 . . . Artifact . | . . . . . Weapon 12 | . 9 2 . 1 Energy Gun 9 | . 7 1 . 1 Energy Cannon . | . . . . . Ballistic Gun . | . . . . . Ballistic Cannon . | . . . . . Launcher 1 | . 1 . . . Special Weapon 2 | . 1 1 . . Impact Weapon . | . . . . . Slashing Weapon . | . . . . . Piercing Weapon . | . . . . . Special Melee Weapon . | . . . . . Unidentified Prototypes . | . . . . . Parts Lost 6 | . 2 . . 4 Power 2 | . 1 . . 1 Propulsion 1 | . . . . 1 Utility . | . . . . . Weapon 3 | . 1 . . 2 Highest Loss Streak 4 | . 1 . . 4 To Critical Strikes 1 | . . . . 1 Average Slot Usage (%) 96 | . 94 100 100 100 Engine 13 | . 13 14 14 14 Treads 15 | . 26 . . . Leg 12 | . 1 28 28 28 Device 5 | . . 11 14 14 Storage 13 | . 13 14 14 14 Protection 6 | . 9 2 . . Energy Gun 23 | . 27 21 14 14 Special Weapon 4 | . . 6 14 14 Naked Turns . | . . . . . Heaviest Build 30 | 3 17 17 30 30 Greatest Support 46 | 3 46 26 26 26 Greatest Overweight (x) 4 | . 4 . 1 1 Average Overweight (x) . | . . . . 1 Largest Inventory Capacity 15 | 5 8 8 15 15 Average Capacity 8 | 5 7 8 12 15 Most Carried 15 | 5 8 8 15 15 Average Carried 8 | 4 7 8 10 14 Final Capacity 15 | 5 8 8 15 15 Final Carried 15 | 5 8 8 15 14 Class Distribution -------------------- 100% | Mutant Dominant Class ---------------- Mutant | -10/Materials Mutant | -10/Mines Mutant | -10/Exiles Mutant | -9/Mines Resources | -11 -10 -10 -10 -9 ----------- Run | Jun Mat Min Exi Min Matter Collected 488 | 201 217 60 10 . Remotely . | . . . . . Salvage Created 660 | . 588 48 . 24 Parts 43 | . 38 3 . 2 Haulers Intercepted . | . . . . . Recyclers Shooed . | . . . . . Parts Field Recycled . | . . . . . Retrieved Matter . | . . . . . Parts Self-Destructed . | . . . . . Prevented . | . . . . . Kills | -11 -10 -10 -10 -9 ------- Run | Jun Mat Min Exi Min Combat Hostiles Destroyed 17 | . 14 1 . 2 Guns 16 | . 13 1 . 2 Cannons 1 | . 1 . . . Classes Destroyed 4 | . 3 . . 1 Watcher 3 | . 3 . . . Swarmer 4 | . 3 . . 1 Grunt 12 | . 11 1 . . Assembled 1 | . . . . 1 Best Kill Streak 4 | . 4 1 . 2 Combat Bots Only 4 | . 4 1 . 2 Max Kills in Single Turn 1 | . 1 1 . 1 Gunslinging . | . . . . . Exploded . | . . . . . Melee . | . . . . . Uniques/NPCs Destroyed . | . . . . . Combat | -11 -10 -10 -10 -9 -------- Run | Jun Mat Min Exi Min Damage Taken 1134 | . 625 84 . 425 Core 203 | . 85 45 . 73 Absorbed by Shields . | . . . . . Core Remaining (%) 100 | 100 . . . . Volleys Fired 79 | . 45 26 . 8 Largest 2 | . 2 2 . 2 Hottest 165 | . 130 165 . 130 Shots Fired 144 | . 83 52 . 9 Gun 132 | . 78 45 . 9 Cannon . | . . . . . Launcher . | . . . . . Special 12 | . 5 7 . . Kinetic . | . . . . . Thermal 144 | . 83 52 . 9 Explosive . | . . . . . Electromagnetic . | . . . . . Robot Hit Streak 11 | . 11 2 . 3 Robot Miss Streak 4 | . 4 3 . 2 Penetration Max . | . . . . . Secondary Targets 2 | . 2 . . . Max Gunslinging Chain 1 | . 1 . . . Shots Hit Robots 60 | . 50 4 . 6 Core Hits 30 | . 26 1 . 3 Critical Kills . | . . . . . Critical Parts Destroyed . | . . . . . Critical Strikes 2 | . . 2 . . Burn 2 | . . 2 . . Melee Attacks . | . . . . . Impact . | . . . . . Slashing . | . . . . . Piercing . | . . . . . Sneak Attacks . | . . . . . Combat Hostiles . | . . . . . Follow-up Attacks . | . . . . . Damage Inflicted 898 | . 709 94 . 95 Guns 875 | . 686 94 . 95 Cannons . | . . . . . Explosions . | . . . . . Melee . | . . . . . Ramming . | . . . . . Kinetic . | . . . . . Thermal 898 | . 709 94 . 95 Explosive . | . . . . . Electromagnetic . | . . . . . Impact . | . . . . . Slashing . | . . . . . Piercing . | . . . . . Highest Corruption . | . . . . . Average Corruption . | . . . . . Corruption Purged . | . . . . . Corruption Blocked . | . . . . . Overload Shots . | . . . . . Overflow Damage . | . . . . . Projectiles . | . . . . . Explosions . | . . . . . Melee . | . . . . . Knockbacks . | . . . . . Impact . | . . . . . Kinetic . | . . . . . Secondary . | . . . . . Self-Inflicted Damage . | . . . . . Shots . | . . . . . Rammed . | . . . . . Targets Rammed . | . . . . . Kicked . | . . . . . Crushed . | . . . . . Highest Temperature 438 | . 438 399 . 18 Average Temperature 131 | . 127 147 . 11 Received Heat Transfer 363 | . 255 48 . 60 Effects 6 | . 5 1 . . Shutdowns 2 | . 1 1 . . Interference 3 | . 3 . . . Matter Decay 1 | . 1 . . . Siege Activations . | . . . . . Robots Corrupted . | . . . . . Combat Hostiles . | . . . . . Parts Fried . | . . . . . Impact Corruptions . | . . . . . Robots Melted . | . . . . . Combat Hostiles . | . . . . . Parts Melted 2 | . 1 1 . . Heat Transferred 2251 | . 1659 370 . 222 Parts Sabotaged . | . . . . . Parts Stolen . | . . . . . Parts Stripped . | . . . . . Power Chain Reactions . | . . . . . Missiles Intercepted . | . . . . . Alert | -11 -10 -10 -10 -9 ------- Run | Jun Mat Min Exi Min Peak Influence 175 | . 175 162 . 20 Initial . | . . . . . Average 38 | . 30 66 . 1 Maximum Alert Level . | . . . . . Low Security (%) 100 | 100 100 100 . 100 Level 1 . | . . . . . Level 2 . | . . . . . Level 3 . | . . . . . Level 4 . | . . . . . Level 5 . | . . . . . High Security . | . . . . . Max Security . | . . . . . Squads Dispatched 4 | . 4 . . . Investigation 2 | . 2 . . . Extermination . | . . . . . Reinforcement 2 | . 2 . . . Assault . | . . . . . Garrison . | . . . . . Intercept . | . . . . . Searches Triggered . | . . . . . Construction Impeded . | . . . . . Haulers Reinforced . | . . . . . Active Scanning Responses . | . . . . . Cargo Convoy Interrupts . | . . . . . Stealth | -11 -10 -10 -10 -9 --------- Run | Jun Mat Min Exi Min Distress Signals 2 | . 2 . . . Communications Jammed . | . . . . . Distress Signals . | . . . . . Times Spotted 42 | . 23 7 . 12 Peak Tracking Total 10 | . 6 4 . 10 Tactical Retreats 4 | . 1 1 . 2 Traps | -11 -10 -10 -10 -9 ------- Run | Jun Mat Min Exi Min Traps Triggered 2 | . 2 . . . Indirectly . | . . . . . Trap Hack Attempts . | . . . . . Triggered . | . . . . . Disarmed . | . . . . . Reprogrammed . | . . . . . Reused . | . . . . . Traps Extracted . | . . . . . Installed . | . . . . . Triggered 1 | . . 1 . . Machines | -11 -10 -10 -10 -9 ---------- Run | Jun Mat Min Exi Min Machines Disabled . | . . . . . Max in Single Turn . | . . . . . Machines Repaired . | . . . . . Machines Sabotaged . | . . . . . Overloaded Fab Kills . | . . . . . Hacking | -11 -10 -10 -10 -9 --------- Run | Jun Mat Min Exi Min Machines Accessed 6 | . 5 . 1 . Terminals 5 | . 5 . . . Fabricators . | . . . . . Repair Stations . | . . . . . Recycling Units . | . . . . . Scanalyzers . | . . . . . Garrison Access . | . . . . . Total Hacks 11 | . 10 . 1 . Successful 3 | . 2 . 1 . Failed 8 | . 8 . . . Catastrophic 2 | . 2 . . . Database Lockouts . | . . . . . Manual 4 | . 3 . 1 . Terminals 10 | . 10 . . . Fabricators . | . . . . . Repair Stations . | . . . . . Recycling Units . | . . . . . Scanalyzers . | . . . . . Garrison Access . | . . . . . Terminal Hacks 3 | . 2 . 1 . Prototype ID Bank 1 | . 1 . . . Recall Reinforcements 1 | . 1 . . . EX-Prototype ID Bank 1 | . . . 1 . Fabricator Hacks . | . . . . . Repair Station Hacks . | . . . . . Recycling Unit Hacks . | . . . . . Scanalyzer . | . . . . . Garrison Access Hacks . | . . . . . Unauthorized Hacks . | . . . . . Terminals . | . . . . . Fabricators . | . . . . . Repair Stations . | . . . . . Recycling Units . | . . . . . Scanalyzers . | . . . . . Garrison Access . | . . . . . Data Cores Recovered . | . . . . . Used . | . . . . . Hacking Detections 5 | . 5 . . . Full Trace Events . | . . . . . Feedback Events . | . . . . . Feedback Blocked . | . . . . . Robot Schematics Acquired . | . . . . . Robots Built . | . . . . . Authchips . | . . . . . Time . | . . . . . Total Robot Build Rating . | . . . . . Part Schematics Acquired . | . . . . . Parts Built . | . . . . . Authchips . | . . . . . Time . | . . . . . Total Part Build Rating . | . . . . . Parts Repaired . | . . . . . Time . | . . . . . Parts Recycled . | . . . . . Recycled Matter . | . . . . . Retrieved Matter . | . . . . . Retrieved Components . | . . . . . Parts Scanalyzed . | . . . . . Part Schematics Acquired . | . . . . . Parts Damaged . | . . . . . Bothacking | -11 -10 -10 -10 -9 ------------ Run | Jun Mat Min Exi Min Used RIF Installer . | . . . . . Robots Hacked . | . . . . . Non-combat . | . . . . . Combat . | . . . . . Robot Hacks Applied . | . . . . . Relay Couplers Released . | . . . . . Fabnet Peak Effective % . | . . . . . Robots Rewired . | . . . . . Allies Hacked . | . . . . . Hacks Repelled . | . . . . . Allies | -11 -10 -10 -10 -9 -------- Run | Jun Mat Min Exi Min Total Allies 5 | . . 5 . . Largest Group 5 | . . 5 1 . Highest-Rated Group 81 | . . 81 31 . Highest-Rated Ally 31 | . . 31 31 . Total Orders . | . . . . . Ally Attacks 55 | . . 55 . . Total Damage 623 | . . 623 . . Kills 7 | . . 7 . . Allies Corrupted . | . . . . . Allies Melted . | . . . . . Intel | -11 -10 -10 -10 -9 ------- Run | Jun Mat Min Exi Min Robot Analysis Total . | . . . . . Derelict Logs Recovered 1 | . . 1 . . Drone Launches . | . . . . . Drone Recoveries . | . . . . . Exploration | -11 -10 -10 -10 -9 ------------- Run | Jun Mat Min Exi Min Turns Passed 3258 | 27 1889 661 638 43 Spaces Moved 1792 | 31 995 353 400 13 Core 74 | 31 43 . . . Treads 863 | . 863 . . . Legs 855 | . 89 353 400 13 Wheels . | . . . . . Hover . | . . . . . Flight . | . . . . . Fastest Speed 50 | 50 50 120 120 190 Average Speed 146 | 50 154 120 158 190 Slowest Speed 250 | 50 250 120 190 190 Overloaded Moves . | . . . . . Propulsion Burnouts . | . . . . . Robots Hopped . | . . . . . Cave-ins Triggered . | . . . . . Exploration Rate (%) 46 | 3 96 60 69 4 Regions Visited 4 Branch Regions 3 Pre-discovered Areas . | . . . . . Known Exits Taken . | . . . . . Unknown Exits Taken 4 | 1 1 1 1 . Scrap Searched 2 | . . 1 . 1 Spaces Dug . | . . . . . Terrain Destroyed . | . . . . . Melee . | . . . . . Projectile . | . . . . . AOE . | . . . . . Terrain Rammed . | . . . . . Walls Destroyed . | . . . . . Machines Disabled . | . . . . . Actions | -11 -10 -10 -10 -9 --------- Run | Jun Mat Min Exi Min Total 2256 | 40 1264 524 406 22 Wait 311 | . 174 137 . . Move 1788 | 30 994 352 399 13 Hop . | . . . . . Pick Up 31 | 6 18 2 5 . Fast Attach 6 | 2 3 1 . . Attach 8 | 1 6 . . 1 Detach . | . . . . . Swap 13 | 1 8 3 1 . Drop 20 | . 16 3 1 . Fire 79 | . 45 26 . 8 Melee . | . . . . . Ram . | . . . . . Kick . | . . . . . Crush . | . . . . . Escape Stasis . | . . . . . Rewire . | . . . . . Trap . | . . . . . Miscellaneous . | . . . . . Route ------- -11/Junkyard -10/Materials (discovered 4 exits: [*Mat x3] / [*Min]) -10/Mines (discovered 2 exits: [*Mat] / *Exi) -10/Exiles -9/Mines History --------- Turn | Location | Event 15 | -11/Junkyard | Discovered new exit (range 16) 28 | -11/Junkyard | Entered Materials 310 | -10/Materials | Build established: Mutant 473 | -10/Materials | Discovered new exit (range 11) 881 | -10/Materials | Discovered new exit (range 3) 1050 | -10/Materials | Discovered new exit (range 10) 1281 | -10/Materials | Discovered new exit (range 4) 1917 | -10/Materials | Entered Mines 1919 | -10/Mines | Assisted by bots powering up and referring to "LRC-V3" 1999 | -10/Mines | Core integrity fell below 50% 2003 | -10/Mines | Learned Materials stockpile data 2125 | -10/Mines | Excavation squad dispatched 2125 | -10/Mines | A large section of the Mines collapsed 2375 | -10/Mines | Excavation squad dispatched 2540 | -10/Mines | Discovered new exit (range 11) 2574 | -10/Mines | Deemed a non-threat by the Exiles lab entrance 2574 | -10/Mines | Discovered new exit (range 5) 2578 | -10/Mines | Entered Exiles 2578 | -10/Exiles | Accompanied by 1 ally 2608 | -10/Exiles | Led the pair of lost Derelicts to a safe place 2608 | -10/Exiles | Met 8R-AWN 2629 | -10/Exiles | Met EX-HEX 2661 | -10/Exiles | Met EX-BIN 2676 | -10/Exiles | Aligned with FarCom system 2677 | -10/Exiles | Given EX-Vault access code 2704 | -10/Exiles | Opened EX-Vault 2730 | -10/Exiles | Warned to stay clear of 0b10 Research branches 2763 | -10/Exiles | Met EX-DEC 2934 | -10/Exiles | Found Superbattery 2939 | -10/Exiles | Found Lightpack 2.0 2947 | -10/Exiles | Found PSU Rigger 3195 | -10/Exiles | Discovered new exit (range 10) 3216 | -10/Exiles | Stole three prototypes: Lightpack 2.0, Superbattery, PSU Rigger 3216 | -10/Exiles | Entered Mines 3217 | -9/Mines | Assembled infested the area 3222 | -9/Mines | Assisted by a Guerilla fighting off Assembled 3259 | -9/Mines | Self-destructed Last Messages --------------- 03222_ Found Flail. 03222_ Found 23 Matter. 03228_ 9O-NBX(h): "I'll hold them off! Go on ahead or try to find another way!" 03230_ HV Slug penetrates as-81521. 03230_ as-81521 suffers critical hit (Destroy). 03230_ as-81521 knocked back. 03230_ HV Slug penetrates Wall. 03235_ as-40987 destroyed. 03237_ HV Slug penetrates Wall. 03239_ as-11544 suffers critical hit (Destroy). 03239_ as-11544 destroyed. 03240_ 9O-NBX(h) destroyed. 03249_ as-42377 destroyed. 03251_ Mining Laser destroyed. 03253_ Ion Engine destroyed. 03254_ S-10 Pest destroyed. 03257_ Critical hit (Destroy). 03257_ Particle Gun destroyed. 03259_ Imp. Aluminum Leg destroyed. Map ----- +----------------------------------------------------+ | ?????????????????????????????????? | | ?????????????????????????????????? | | ?????????????????????????????????? | | ?????????????????????????????????? | | ??????????????????? ????????????? | | ??????????????????? ????????????? | | ??????????????????? ????????????? | | ??????????????????? ????????????? | | ??????????????????? ????????????? | | ??????????????????? ????????????? | | ???????????????????# ????????????? | | ??????????????????## ##??????????? | | ?????????????????? #??????????? | | ???????????????????% %#??????????? | | ???????????????????; #??????????? | | ???????????????????# #??????????? | | ??????????????????##%a##?????????? | | ??????????????????# a%##????????? | | ??????????????????# a= ##???????? | | ???????????????????# ##??????? | | ???????????????????#/ #??????? | | ???????????????????# %a ##?????? | | ???????????????????##! % #?????? | | ????????????????????## #?????? | | ?????????????????????## s #?????? | | ??????????????????????# %@##?????? | | ??????????????????????# ###??????? | | ??????????????????????# #????????? | | ??????????????????????#$#????????? | | ??????????????????????# #????????? | | ??????????????????????s #????????? | | ??????????????????????###????????? | | ?????????????????????????????????? | | ?????????????????????????????????? | | ?????????????????????????????????? | | ?????????????????????????????????? | | ?????????????????????????????????? | | ?????????????????????????????????? | | ?????????????????????????????????? | | | | | | | | | | | | | | | | | | | | | | | +----------------------------------------------------+ Best States ------------- Heat Dissipation 39 Energy Generation 10 Energy Capacity 250 Matter Stores 300 Matter Capacity 300 Sight Range 16 Terrain Scan Density 10 Utility Shielding 33 Evasion (%) 55 Recoil Reduction 2 Item Schematics ----------------- None Robot Schematics ------------------ None Fabricated ------------ Nothing Alien Tech Used ----------------- None Achievements -------------- None Challenges ------------ None Game ------ Seed SegregatorArchitectBarrier Manual? 0 Play Time 00:16:15 Cumulative 77.3 hours Start 2023.10.20 @ 18:17:57 End 2023.10.20 @ 18:33:08 Sessions 1 Manual Loads 0 Difficulty Rogue Special Mode None Game No. 131 Rogue 128 Adventurer 3 Explorer 0 Win Type - Total 0 Types 0/0/0/0/0/0/0/0/0 Lore% 34 Gallery% 51 Achievement% 37 Wizard Run 0 Options --------- ASCII 0 Keyboard 0 Movement Mouse Keybinds 0 Fullscreen 2 Font 18/SmallcapsGlow Map View 76x50 Tactical HUD 1 Map Filters NONE Filters NONE Steam 1 RUN: 09aced3d-bc93-4dd4-969d-a47439893d21